[Event "Early-Titled-Tuesday-Blitz-January-23-2024"]
[Site "Chess.com"]
[Date "2024.01.23"]
[Round "4"]
[White "ChessQueen"]
[Black "rasmussvane"]
[Result "0-1"]
[WhiteElo "2731"]
[BlackElo "2995"]
[TimeControl "180+1"]
[EndTime "8:39:49 PST"]
[Termination "rasmussvane won by resignation"]

1. d4 {[%clk 0:03:00.9]} 1... d5 {[%clk 0:02:59.1]} 2. Nf3 {[%clk 0:03:00.3]}
2... e6 {[%clk 0:02:59.1]} 3. c4 {[%clk 0:03:00.1]} 3... a6 {[%clk 0:02:58.3]}
4. Nc3 {[%clk 0:02:45.2]} 4... dxc4 {[%clk 0:02:56.7]} 5. g3 {[%clk 0:02:41.9]}
5... b5 {[%clk 0:02:55]} 6. Bg2 {[%clk 0:02:41.1]} 6... Bb7 {[%clk 0:02:54.8]}
7. O-O {[%clk 0:02:38.2]} 7... Nf6 {[%clk 0:02:54.1]} 8. a4 {[%clk 0:02:35.4]}
8... b4 {[%clk 0:02:34.5]} 9. Nb1 {[%clk 0:02:34.9]} 9... Nbd7 {[%clk
0:02:29.9]} 10. Nbd2 {[%clk 0:02:34]} 10... c3 {[%clk 0:02:24.1]} 11. bxc3
{[%clk 0:02:32]} 11... bxc3 {[%clk 0:02:25]} 12. Nc4 {[%clk 0:02:30]} 12... Bd5
{[%clk 0:01:35.7]} 13. Qd3 {[%clk 0:02:22.4]} 13... Bb4 {[%clk 0:01:33.6]} 14.
Bg5 {[%clk 0:01:49.5]} 14... O-O {[%clk 0:01:25.4]} 15. Nfe5 {[%clk 0:01:22.7]}
15... Bxg2 {[%clk 0:00:57.6]} 16. Kxg2 {[%clk 0:01:22.3]} 16... Nxe5 {[%clk
0:00:57.8]} 17. Nxe5 {[%clk 0:01:22.9]} 17... Qd5+ {[%clk 0:00:49.3]} 18. f3
{[%clk 0:01:20.8]} 18... Nd7 {[%clk 0:00:45]} 19. Nxd7 {[%clk 0:00:58.2]} 19...
Qxd7 {[%clk 0:00:45.9]} 20. Qc4 {[%clk 0:00:46.3]} 20... a5 {[%clk 0:00:41.6]}
21. e4 {[%clk 0:00:46.3]} 21... Rfc8 {[%clk 0:00:36.1]} 22. Rfd1 {[%clk
0:00:44.4]} 22... h6 {[%clk 0:00:35.4]} 23. Be3 {[%clk 0:00:43.4]} 23... Qe7
{[%clk 0:00:34.1]} 24. Rd3 {[%clk 0:00:40.4]} 24... c5 {[%clk 0:00:24]} 25. d5
{[%clk 0:00:40.4]} 25... exd5 {[%clk 0:00:24.9]} 26. Rxd5 {[%clk 0:00:39.7]}
26... Kh7 {[%clk 0:00:14.3]} 27. Rc1 {[%clk 0:00:14.8]} 27... Qe8 {[%clk
0:00:13]} 28. Qb3 {[%clk 0:00:11.7]} 28... c4 {[%clk 0:00:11.4]} 29. Qc2 {[%clk
0:00:11.7]} 29... Rd8 {[%clk 0:00:12]} 30. Rcd1 {[%clk 0:00:11.8]} 30... Rxd5
{[%clk 0:00:12.2]} 31. Rxd5 {[%clk 0:00:12.7]} 31... Rd8 {[%clk 0:00:12.6]} 32.
e5+ {[%clk 0:00:13]} 32... Kg8 {[%clk 0:00:12.2]} 33. Rd4 {[%clk 0:00:12.2]}
33... Rd7 {[%clk 0:00:06.6]} 34. Rxc4 {[%clk 0:00:11.2]} 34... Qd8 {[%clk
0:00:05.9]} 35. e6 {[%clk 0:00:08.7]} 35... fxe6 {[%clk 0:00:06]} 36. Qe4 {[%clk
0:00:09]} 36... Rd6 {[%clk 0:00:04.9]} 37. Bd4 {[%clk 0:00:08.9]} 37... Qd7
{[%clk 0:00:04.6]} 38. Be5 {[%clk 0:00:08.2]} 38... Rd2+ {[%clk 0:00:04.8]} 39.
Kh3 {[%clk 0:00:09]} 39... Qd3 {[%clk 0:00:03.2]} 40. Qa8+ {[%clk 0:00:08.9]}
40... Kf7 {[%clk 0:00:03.9]} 41. Rf4+ {[%clk 0:00:09]} 41... Kg6 {[%clk
0:00:03.4]} 42. Qe8+ {[%clk 0:00:09.4]} 42... Kh7 {[%clk 0:00:04]} 43. Qf7
{[%clk 0:00:09.7]} 43... Qg6 {[%clk 0:00:04]} 44. Qxg6+ {[%clk 0:00:08.7]} 44...
Kxg6 {[%clk 0:00:04.3]} 45. Rc4 {[%clk 0:00:09.1]} 45... c2 {[%clk 0:00:03.8]}
46. Bf4 {[%clk 0:00:09.1]} 46... Re2 {[%clk 0:00:04]} 47. Rc6 {[%clk 0:00:08.6]}
47... Kf7 {[%clk 0:00:04.1]} 48. Rc7+ {[%clk 0:00:08.6]} 48... Kf6 {[%clk
0:00:04.7]} 49. Rc6 {[%clk 0:00:09.1]} 49... g5 {[%clk 0:00:04.2]} 50. Bc1
{[%clk 0:00:09.7]} 50... Ke7 {[%clk 0:00:03]} 51. f4 {[%clk 0:00:08]} 51... Kd7
{[%clk 0:00:03.2]} 52. Rc4 {[%clk 0:00:07.3]} 52... gxf4 {[%clk 0:00:03.1]} 53.
Bxf4 {[%clk 0:00:06.9]} 53... h5 {[%clk 0:00:03.6]} 54. Bg5 {[%clk 0:00:06.5]}
54... e5 {[%clk 0:00:03.9]} 55. Bh6 {[%clk 0:00:06.5]} 55... Kd6 {[%clk
0:00:04.2]} 56. Rc8 {[%clk 0:00:06.4]} 56... Kd5 {[%clk 0:00:04.6]} 57. Bg5
{[%clk 0:00:06.4]} 57... e4 {[%clk 0:00:05]} 58. Rd8+ {[%clk 0:00:06.5]} 58...
Kc4 {[%clk 0:00:05.3]} 59. Rc8+ {[%clk 0:00:07.4]} 59... Kb3 {[%clk 0:00:05.9]}
60. g4 {[%clk 0:00:06.3]} 60... hxg4+ {[%clk 0:00:05.8]} 61. Kxg4 {[%clk
0:00:07.2]} 61... Rxh2 {[%clk 0:00:06.2]} 62. Kf5 {[%clk 0:00:06.6]} 62... Rg2
{[%clk 0:00:05.8]} 63. Be3 {[%clk 0:00:05.9]} 63... Kxa4 {[%clk 0:00:05.3]} 64.
Kxe4 {[%clk 0:00:06]} 64... Kb3 {[%clk 0:00:05.9]} 65. Kd3 {[%clk 0:00:06.2]}
65... a4 {[%clk 0:00:06.4]} 66. Bc1 {[%clk 0:00:06.4]} 66... Rg1 {[%clk
0:00:06.2]} 67. Be3 {[%clk 0:00:06.2]} 67... Rd1+ {[%clk 0:00:06.3]} 68. Ke2
{[%clk 0:00:05.9]} 68... a3 {[%clk 0:00:06.7]} 69. Rb8 {[%clk 0:00:05.1]} 69...
Re1+ {[%clk 0:00:06.3]} 70. Kd3 {[%clk 0:00:05.2]} 70... Rxe3+ {[%clk
0:00:06.8]} 71. Kxe3 {[%clk 0:00:04.7]} 71... c1=Q+ {[%clk 0:00:07.2]} 0-1

[Event "Early-Titled-Tuesday-Blitz-January-23-2024"]
[Site "Chess.com"]
[Date "2024.01.23"]
[Round "4"]
[White "LeRoidesChampions"]
[Black "SpeedofLight0"]
[Result "0-1"]
[WhiteElo "2622"]
[BlackElo "2903"]
[TimeControl "180+1"]
[EndTime "8:39:52 PST"]
[Termination "SpeedofLight0 won by checkmate"]

1. e4 {[%clk 0:03:00.9]} 1... e5 {[%clk 0:02:52.6]} 2. Nf3 {[%clk 0:03:00.4]}
2... Nc6 {[%clk 0:02:52.6]} 3. Bb5 {[%clk 0:02:59.3]} 3... a6 {[%clk 0:02:52.7]}
4. Ba4 {[%clk 0:02:58.7]} 4... Bc5 {[%clk 0:02:53.1]} 5. O-O {[%clk 0:02:52]}
5... Nge7 {[%clk 0:02:53]} 6. c3 {[%clk 0:02:50.5]} 6... Ba7 {[%clk 0:02:52.5]}
7. d4 {[%clk 0:02:50.5]} 7... Ng6 {[%clk 0:02:52.8]} 8. Bg5 {[%clk 0:02:49.6]}
8... f6 {[%clk 0:02:52.5]} 9. Be3 {[%clk 0:02:50.3]} 9... O-O {[%clk 0:02:49.3]}
10. Nbd2 {[%clk 0:02:50.6]} 10... d6 {[%clk 0:02:49.3]} 11. Bb3+ {[%clk
0:02:48.3]} 11... Kh8 {[%clk 0:02:49.1]} 12. h3 {[%clk 0:02:48.9]} 12... Qe8
{[%clk 0:02:45]} 13. Rc1 {[%clk 0:02:42.4]} 13... Nd8 {[%clk 0:02:34.6]} 14. Re1
{[%clk 0:02:41.9]} 14... Ne6 {[%clk 0:02:34.3]} 15. Bxe6 {[%clk 0:02:40.9]}
15... Bxe6 {[%clk 0:02:33.3]} 16. d5 {[%clk 0:02:41.5]} 16... Bxe3 {[%clk
0:02:28.9]} 17. Rxe3 {[%clk 0:02:41.2]} 17... Bd7 {[%clk 0:02:29.5]} 18. c4
{[%clk 0:02:31.9]} 18... f5 {[%clk 0:02:22]} 19. exf5 {[%clk 0:02:25.7]} 19...
Bxf5 {[%clk 0:02:20.8]} 20. c5 {[%clk 0:02:23.2]} 20... Nf4 {[%clk 0:02:18.1]}
21. cxd6 {[%clk 0:02:20.1]} 21... cxd6 {[%clk 0:02:16.9]} 22. Nh4 {[%clk
0:02:16.5]} 22... Bd7 {[%clk 0:02:09.3]} 23. Ne4 {[%clk 0:02:15.3]} 23... Qe7
{[%clk 0:02:05.1]} 24. Nf3 {[%clk 0:02:12.7]} 24... Bf5 {[%clk 0:02:05.1]} 25.
Ng3 {[%clk 0:02:06.2]} 25... Bg6 {[%clk 0:02:02.7]} 26. Rec3 {[%clk 0:01:59.6]}
26... e4 {[%clk 0:02:01.7]} 27. Nh2 {[%clk 0:01:45.6]} 27... Nd3 {[%clk
0:01:48.5]} 28. R1c2 {[%clk 0:01:38.5]} 28... Qe5 {[%clk 0:01:34.3]} 29. Ng4
{[%clk 0:01:21.3]} 29... Qxd5 {[%clk 0:01:28.5]} 30. Ne3 {[%clk 0:01:20.1]}
30... Qe5 {[%clk 0:01:20.6]} 31. Qg4 {[%clk 0:01:00.3]} 31... d5 {[%clk
0:01:07.2]} 32. Rc7 {[%clk 0:00:52.4]} 32... Nxf2 {[%clk 0:01:01]} 33. Qd7
{[%clk 0:00:50.2]} 33... Nd3 {[%clk 0:00:45.9]} 34. Ng4 {[%clk 0:00:44.5]} 34...
Qd4+ {[%clk 0:00:44]} 35. Kh2 {[%clk 0:00:44.6]} 35... Rad8 {[%clk 0:00:31.3]}
36. Qe7 {[%clk 0:00:44.7]} 36... Rfe8 {[%clk 0:00:13.6]} 37. Qg5 {[%clk
0:00:44.8]} 37... Ne5 {[%clk 0:00:11.8]} 38. Ne3 {[%clk 0:00:33.8]} 38... Nf7
{[%clk 0:00:11.4]} 39. Qh4 {[%clk 0:00:31.5]} 39... Qxe3 {[%clk 0:00:10.6]} 40.
Rxb7 {[%clk 0:00:30.3]} 40... Qg5 {[%clk 0:00:10.4]} 41. Qxg5 {[%clk 0:00:23.1]}
41... Nxg5 {[%clk 0:00:11.3]} 42. h4 {[%clk 0:00:23.1]} 42... Ne6 {[%clk
0:00:07.7]} 43. h5 {[%clk 0:00:23.2]} 43... e3 {[%clk 0:00:05]} 44. hxg6 {[%clk
0:00:22.9]} 44... hxg6 {[%clk 0:00:05.9]} 45. Ne2 {[%clk 0:00:19.4]} 45... d4
{[%clk 0:00:06.2]} 46. Rc4 {[%clk 0:00:12.7]} 46... d3 {[%clk 0:00:06.1]} 47.
Rh4+ {[%clk 0:00:12.6]} 47... Kg8 {[%clk 0:00:06.7]} 48. Nf4 {[%clk 0:00:08.2]}
48... Nxf4 {[%clk 0:00:05.5]} 49. Rxf4 {[%clk 0:00:08.5]} 49... Rf8 {[%clk
0:00:05]} 50. Re4 {[%clk 0:00:08.3]} 50... Rf7 {[%clk 0:00:05]} 51. Rb6 {[%clk
0:00:02.5]} 51... d2 {[%clk 0:00:04.2]} 52. Rxg6 {[%clk 0:00:02.4]} 52... d1=Q
{[%clk 0:00:04.3]} 53. Rh4 {[%clk 0:00:03.1]} 53... Qd6+ {[%clk 0:00:03.3]} 54.
Rxd6 {[%clk 0:00:03]} 54... Rxd6 {[%clk 0:00:04.2]} 55. Re4 {[%clk 0:00:03.9]}
55... Rd3 {[%clk 0:00:04.6]} 56. b4 {[%clk 0:00:03.5]} 56... Rf2 {[%clk
0:00:04.4]} 57. a4 {[%clk 0:00:03.5]} 57... e2 {[%clk 0:00:04.3]} 58. b5 {[%clk
0:00:03.1]} 58... axb5 {[%clk 0:00:04.3]} 59. axb5 {[%clk 0:00:04]} 59... Rd1
{[%clk 0:00:04.5]} 60. b6 {[%clk 0:00:04.2]} 60... e1=Q {[%clk 0:00:05.1]} 61.
Rxe1 {[%clk 0:00:03.8]} 61... Rxe1 {[%clk 0:00:06]} 62. b7 {[%clk 0:00:04.6]}
62... Rb2 {[%clk 0:00:06.7]} 63. b8=Q+ {[%clk 0:00:03.8]} 63... Rxb8 {[%clk
0:00:07.6]} 64. g4 {[%clk 0:00:04.3]} 64... Rb2+ {[%clk 0:00:07]} 65. Kh3 {[%clk
0:00:05.2]} 65... g5 {[%clk 0:00:07.1]} 66. Kg3 {[%clk 0:00:04.7]} 66... Re3#
{[%clk 0:00:08]} 0-1

[Event "Early-Titled-Tuesday-Blitz-January-23-2024"]
[Site "Chess.com"]
[Date "2024.01.23"]
[Round "4"]
[White "Mihajlovskij"]
[Black "Let_it_be_1"]
[Result "0-1"]
[WhiteElo "2229"]
[BlackElo "2586"]
[TimeControl "180+1"]
[EndTime "8:40:09 PST"]
[Termination "Let_it_be_1 won on time"]

1. e4 {[%clk 0:02:57.7]} 1... e6 {[%clk 0:02:59.9]} 2. d4 {[%clk 0:02:55.1]}
2... d5 {[%clk 0:03:00.8]} 3. Nd2 {[%clk 0:02:49.9]} 3... Nf6 {[%clk 0:03:00.1]}
4. e5 {[%clk 0:02:48.7]} 4... Nfd7 {[%clk 0:02:59.7]} 5. f4 {[%clk 0:02:46.5]}
5... c5 {[%clk 0:02:59.3]} 6. c3 {[%clk 0:02:46.1]} 6... Nc6 {[%clk 0:02:59.2]}
7. Ndf3 {[%clk 0:02:46]} 7... Qb6 {[%clk 0:02:59]} 8. g3 {[%clk 0:02:45.3]} 8...
Be7 {[%clk 0:02:57.4]} 9. Bh3 {[%clk 0:02:39]} 9... O-O {[%clk 0:02:56.9]} 10.
Ne2 {[%clk 0:02:30.6]} 10... Kh8 {[%clk 0:02:56.5]} 11. Kf1 {[%clk 0:02:26.6]}
11... f6 {[%clk 0:02:49.4]} 12. Kg2 {[%clk 0:02:26.3]} 12... cxd4 {[%clk
0:02:48.2]} 13. cxd4 {[%clk 0:02:25.8]} 13... f5 {[%clk 0:02:40]} 14. Nc3 {[%clk
0:02:21.1]} 14... Qd8 {[%clk 0:02:34.2]} 15. a3 {[%clk 0:02:18.6]} 15... Nb6
{[%clk 0:02:33.5]} 16. b3 {[%clk 0:02:13.7]} 16... Bd7 {[%clk 0:02:32]} 17. Bb2
{[%clk 0:02:11.6]} 17... a5 {[%clk 0:02:27.8]} 18. Kf2 {[%clk 0:02:07.3]} 18...
Rc8 {[%clk 0:02:24.2]} 19. Bf1 {[%clk 0:02:02.2]} 19... a4 {[%clk 0:02:18.8]}
20. b4 {[%clk 0:02:01.6]} 20... Na7 {[%clk 0:02:14.2]} 21. Be2 {[%clk
0:01:56.7]} 21... Qe8 {[%clk 0:02:12.1]} 22. Kg2 {[%clk 0:01:55.8]} 22... Nb5
{[%clk 0:02:07.7]} 23. Rc1 {[%clk 0:01:46.3]} 23... Nxc3 {[%clk 0:02:05.7]} 24.
Rxc3 {[%clk 0:01:44.9]} 24... Rxc3 {[%clk 0:02:05.7]} 25. Bxc3 {[%clk
0:01:44.3]} 25... Bb5 {[%clk 0:02:06.1]} 26. Qf1 {[%clk 0:01:33.4]} 26... Bxe2
{[%clk 0:01:48.5]} 27. Qxe2 {[%clk 0:01:32.4]} 27... Nc4 {[%clk 0:01:48.6]} 28.
Ra1 {[%clk 0:01:23.6]} 28... Qc6 {[%clk 0:01:39.4]} 29. Qd3 {[%clk 0:01:21.7]}
29... Rc8 {[%clk 0:01:35.2]} 30. Be1 {[%clk 0:01:15.9]} 30... Nb2 {[%clk
0:01:28.4]} 31. Qd2 {[%clk 0:01:09.2]} 31... Qc2 {[%clk 0:01:26.7]} 32. Ra2
{[%clk 0:01:06.4]} 32... Qxd2+ {[%clk 0:01:08]} 33. Bxd2 {[%clk 0:01:05.8]}
33... Nd3 {[%clk 0:00:55.2]} 34. Kf1 {[%clk 0:00:51.6]} 34... Nc1 {[%clk
0:00:43.1]} 35. Rb2 {[%clk 0:00:37.9]} 35... Nb3 {[%clk 0:00:41.7]} 36. Ke2
{[%clk 0:00:37]} 36... b5 {[%clk 0:00:36.4]} 37. Ne1 {[%clk 0:00:30.9]} 37...
Nxd4+ {[%clk 0:00:33.8]} 38. Kd3 {[%clk 0:00:28.1]} 38... Nb3 {[%clk 0:00:32.9]}
39. Bc3 {[%clk 0:00:24.7]} 39... Bd8 {[%clk 0:00:30.4]} 40. Nf3 {[%clk
0:00:21.1]} 40... Bb6 {[%clk 0:00:29.6]} 41. Ng5 {[%clk 0:00:19.5]} 41... Rc6
{[%clk 0:00:29.2]} 42. Rg2 {[%clk 0:00:16.7]} 42... h6 {[%clk 0:00:28.5]} 43.
Nf7+ {[%clk 0:00:15.8]} 43... Kg8 {[%clk 0:00:27.8]} 44. Nd6 {[%clk 0:00:16.1]}
44... d4 {[%clk 0:00:15.9]} 45. Bb2 {[%clk 0:00:12.3]} 45... Nc1+ {[%clk
0:00:12.9]} 46. Bxc1 {[%clk 0:00:12]} 46... Rxc1 {[%clk 0:00:13]} 47. Nxb5
{[%clk 0:00:11.9]} 47... Kf7 {[%clk 0:00:10.7]} 48. Rd2 {[%clk 0:00:11.2]} 48...
Ra1 {[%clk 0:00:08.8]} 49. Nd6+ {[%clk 0:00:09.1]} 49... Kg6 {[%clk 0:00:07.6]}
50. Nc4 {[%clk 0:00:08.7]} 50... Ba7 {[%clk 0:00:06.6]} 51. b5 {[%clk
0:00:07.9]} 51... Rb1 {[%clk 0:00:06.8]} 52. Rb2 {[%clk 0:00:07.8]} 52... Rxb2
{[%clk 0:00:06.3]} 53. Nxb2 {[%clk 0:00:07.7]} 53... Kh5 {[%clk 0:00:07.2]} 54.
Nc4 {[%clk 0:00:07.5]} 54... Kg4 {[%clk 0:00:07.1]} 55. b6 {[%clk 0:00:06.4]}
55... Bb8 {[%clk 0:00:07.2]} 56. Nb2 {[%clk 0:00:03.9]} 56... g5 {[%clk
0:00:06.6]} 57. Nxa4 {[%clk 0:00:03.3]} 57... gxf4 {[%clk 0:00:06.4]} 58. gxf4
{[%clk 0:00:03.6]} 58... Kxf4 {[%clk 0:00:07.1]} 59. Nc5 {[%clk 0:00:03.9]}
59... Bxe5 {[%clk 0:00:04.6]} 60. Nxe6+ {[%clk 0:00:03.8]} 60... Kf3 {[%clk
0:00:03]} 61. a4 {[%clk 0:00:03.3]} 61... Kg2 {[%clk 0:00:03.2]} 62. a5 {[%clk
0:00:02.5]} 62... f4 {[%clk 0:00:03.8]} 63. a6 {[%clk 0:00:02.8]} 63... f3
{[%clk 0:00:03.6]} 64. a7 {[%clk 0:00:02.6]} 64... f2 {[%clk 0:00:03.5]} 65.
a8=Q+ {[%clk 0:00:03]} 65... Kxh2 {[%clk 0:00:03.4]} 66. Qf3 {[%clk 0:00:02.4]}
66... Kg1 {[%clk 0:00:03.3]} 67. b7 {[%clk 0:00:02.2]} 67... f1=Q+ {[%clk
0:00:02.9]} 68. Qxf1+ {[%clk 0:00:01.6]} 68... Kxf1 {[%clk 0:00:03.8]} 0-1

[Event "Early-Titled-Tuesday-Blitz-January-23-2024"]
[Site "Chess.com"]
[Date "2024.01.23"]
[Round "4"]
[White "Paladin61"]
[Black "Sina_Movahed"]
[Result "1-0"]
[WhiteElo "2754"]
[BlackElo "2967"]
[TimeControl "180+1"]
[EndTime "8:40:16 PST"]
[Termination "Paladin61 won by resignation"]

1. d4 {[%clk 0:03:00]} 1... Nf6 {[%clk 0:02:59.7]} 2. Nf3 {[%clk 0:03:00.2]}
2... g6 {[%clk 0:03:00]} 3. Bf4 {[%clk 0:02:55.2]} 3... Bg7 {[%clk 0:02:59.4]}
4. e3 {[%clk 0:02:55.6]} 4... O-O {[%clk 0:02:59.9]} 5. Be2 {[%clk 0:02:55.9]}
5... d6 {[%clk 0:02:58.1]} 6. O-O {[%clk 0:02:51.3]} 6... c5 {[%clk 0:02:48.9]}
7. c3 {[%clk 0:02:50.9]} 7... Nh5 {[%clk 0:02:47.1]} 8. Bg5 {[%clk 0:02:50.1]}
8... h6 {[%clk 0:02:47.2]} 9. Bh4 {[%clk 0:02:50.4]} 9... Nc6 {[%clk 0:02:43.9]}
10. Nfd2 {[%clk 0:02:40]} 10... Nf6 {[%clk 0:02:42.9]} 11. a4 {[%clk 0:02:35.3]}
11... b6 {[%clk 0:02:39.5]} 12. Na3 {[%clk 0:02:33.6]} 12... Bb7 {[%clk
0:02:39.1]} 13. Bf3 {[%clk 0:02:21.7]} 13... Rc8 {[%clk 0:02:28.5]} 14. Rc1
{[%clk 0:02:09.2]} 14... Ba8 {[%clk 0:02:25.8]} 15. Re1 {[%clk 0:02:07.9]} 15...
Qd7 {[%clk 0:02:21.3]} 16. h3 {[%clk 0:02:01.2]} 16... Rfe8 {[%clk 0:02:12.3]}
17. Ndc4 {[%clk 0:01:49.4]} 17... Rcd8 {[%clk 0:02:06.2]} 18. d5 {[%clk
0:01:44]} 18... Ne5 {[%clk 0:01:50.6]} 19. Nxe5 {[%clk 0:01:44]} 19... dxe5
{[%clk 0:01:51.5]} 20. e4 {[%clk 0:01:44.5]} 20... Rf8 {[%clk 0:01:51.2]} 21. b4
{[%clk 0:01:34.9]} 21... Rc8 {[%clk 0:01:44]} 22. b5 {[%clk 0:01:30.4]} 22...
Ne8 {[%clk 0:01:42.7]} 23. Nc4 {[%clk 0:01:21.5]} 23... Nd6 {[%clk 0:01:42.2]}
24. Nxd6 {[%clk 0:01:08.3]} 24... exd6 {[%clk 0:01:43.1]} 25. c4 {[%clk
0:01:09.2]} 25... f5 {[%clk 0:01:41.7]} 26. Bg3 {[%clk 0:01:08.1]} 26... Bb7
{[%clk 0:01:33.7]} 27. a5 {[%clk 0:01:02]} 27... Kh7 {[%clk 0:01:13.7]} 28. a6
{[%clk 0:00:57.4]} 28... Ba8 {[%clk 0:01:11.5]} 29. exf5 {[%clk 0:00:52.8]}
29... gxf5 {[%clk 0:01:11.3]} 30. Qc2 {[%clk 0:00:45.8]} 30... Kh8 {[%clk
0:01:09.8]} 31. Kh1 {[%clk 0:00:41.8]} 31... Bf6 {[%clk 0:01:03.5]} 32. Bh2
{[%clk 0:00:39.4]} 32... Rg8 {[%clk 0:01:02.6]} 33. g4 {[%clk 0:00:37]} 33...
Rcf8 {[%clk 0:00:58.8]} 34. Rg1 {[%clk 0:00:35.9]} 34... f4 {[%clk 0:00:37.6]}
35. Be4 {[%clk 0:00:33.1]} 35... Bh4 {[%clk 0:00:36.2]} 36. f3 {[%clk
0:00:32.5]} 36... Qe7 {[%clk 0:00:31.7]} 37. Rg2 {[%clk 0:00:32.4]} 37... Rg7
{[%clk 0:00:24.1]} 38. Bg1 {[%clk 0:00:32.2]} 38... Qf6 {[%clk 0:00:24.1]} 39.
Bf2 {[%clk 0:00:32.4]} 39... Bg5 {[%clk 0:00:24.4]} 40. Qc3 {[%clk 0:00:29.2]}
40... h5 {[%clk 0:00:23.6]} 41. gxh5 {[%clk 0:00:20.7]} 41... Qh6 {[%clk
0:00:24]} 42. Rg4 {[%clk 0:00:14.2]} 42... Qxh5 {[%clk 0:00:22.3]} 43. Kg2
{[%clk 0:00:14.8]} 43... Rfg8 {[%clk 0:00:20.3]} 44. Rh1 {[%clk 0:00:13.8]}
44... Bf6 {[%clk 0:00:20.6]} 45. Qd3 {[%clk 0:00:11]} 45... Rg5 {[%clk 0:00:20]}
46. Kf1 {[%clk 0:00:08.3]} 46... R5g7 {[%clk 0:00:19]} 47. Ke2 {[%clk
0:00:08.2]} 47... Be7 {[%clk 0:00:15.5]} 48. Qd1 {[%clk 0:00:07.2]} 48... Bf6
{[%clk 0:00:15.4]} 49. Rhg1 {[%clk 0:00:06]} 49... Be7 {[%clk 0:00:13.6]} 50.
Rxg7 {[%clk 0:00:05.3]} 50... Rxg7 {[%clk 0:00:14.5]} 51. Rxg7 {[%clk
0:00:05.9]} 51... Kxg7 {[%clk 0:00:15.4]} 52. Qg1+ {[%clk 0:00:06.5]} 52... Kf8
{[%clk 0:00:15.4]} 53. Qg4 {[%clk 0:00:07.4]} 53... Qxg4 {[%clk 0:00:13.9]} 54.
fxg4 {[%clk 0:00:07.7]} 54... Kg7 {[%clk 0:00:12.9]} 55. h4 {[%clk 0:00:05.5]}
55... Kf8 {[%clk 0:00:12.8]} 56. g5 {[%clk 0:00:05.1]} 56... Kg7 {[%clk
0:00:12.6]} 57. Kf3 {[%clk 0:00:05.6]} 57... Kf7 {[%clk 0:00:11.7]} 58. Kg4
{[%clk 0:00:06.1]} 58... Bb7 {[%clk 0:00:11.8]} 59. h5 {[%clk 0:00:06.6]} 59...
Bc8+ {[%clk 0:00:12.7]} 60. Bf5 {[%clk 0:00:04.9]} 60... Bxf5+ {[%clk
0:00:12.3]} 61. Kxf5 {[%clk 0:00:05.8]} 61... Kg7 {[%clk 0:00:10.6]} 62. Be1
{[%clk 0:00:04.1]} 62... Bd8 {[%clk 0:00:10.5]} 63. Bh4 {[%clk 0:00:04.3]} 63...
f3 {[%clk 0:00:11]} 64. Ke4 {[%clk 0:00:02.5]} 64... Bxg5 {[%clk 0:00:10.7]} 65.
Bf2 {[%clk 0:00:01.9]} 65... Kh6 {[%clk 0:00:10]} 66. Kxf3 {[%clk 0:00:02.4]}
66... Kxh5 {[%clk 0:00:10.9]} 67. Ke4 {[%clk 0:00:03]} 67... Kg4 {[%clk
0:00:11]} 68. Be1 {[%clk 0:00:02.9]} 68... Bf4 {[%clk 0:00:10.9]} 69. Bc3 {[%clk
0:00:03]} 69... Kg3 {[%clk 0:00:09.9]} 70. Ba5 {[%clk 0:00:03.1]} 70... bxa5
{[%clk 0:00:07.2]} 71. b6 {[%clk 0:00:03.4]} 71... a4 {[%clk 0:00:08.1]} 72. b7
{[%clk 0:00:03.2]} 72... a3 {[%clk 0:00:09]} 73. b8=Q {[%clk 0:00:03.8]} 73...
a2 {[%clk 0:00:09.9]} 74. Qb2 {[%clk 0:00:04.1]} 1-0